bitfinex-derivatives/quotes_ETHF0:USTF0_20241230
["timestamp","ask_amount","ask_price","bid_price","bid_amount"]
[1735596756702,0.29922,3347.8,3347.4,0.29925]
[1735596757403,0.29921,3347.9,3347.4,0.29925]
[1735596758005,1.9271,3348.1,3347.3,3.2078]
[1735596758201,1.9271,3348.1,3347.4,2.91953049]
[1735596758404,1.9271,3348.1,3348.0,0.2992]
[1735596759405,4.09117,3348.4,3348.0,0.29919]
[1735596759406,4.09116,3348.4,3348.0,0.29919]
[1735596759606,3.2078,3348.3,3347.7,3.20585405]
[1735596759805,0.29921,3347.9,3347.7,3.20585405]
[1735596760004,0.29921,3347.9,3347.5,0.29924]
[1735596760005,0.29922,3347.8,3347.4,3.21878049]
[1735596760316,0.29921,3347.9,3347.5,0.29924]
[1735596760518,0.2992,3348.0,3347.4,2.91953049]
[1735596760718,0.2992,3348.0,3347.6,0.29923]
[1735596760918,3.2078,3348.3,3347.4,2.91953049]
[1735596761226,0.2992,3348.1,3347.6,0.29923]
[1735596761520,0.29921,3347.9,3347.5,0.29924]
[1735596761927,0.29921,3347.9,3347.4,2.91953049]
[1735596761928,0.2992,3348.0,3347.6,0.29923]
[1735596762516,3.2078,3348.3,3347.4,3.21878049]
[1735596762517,0.29922,3347.8,3347.4,3.21878049]
[1735596762724,0.2992,3348.0,3347.6,0.29923]
[1735596763212,0.2992,3348.0,3347.4,2.91953049]
[1735596763213,3.2078,3348.3,3347.4,2.91953049]
[1735596763529,3.2078,3347.8,3346.6,2.91953049]
[1735596763824,3.2078,3347.8,3346.1,5.44527835]
[1735596763825,1.7247,3347.7,3346.2,6.12733049]
[1735596764019,0.29934,3346.5,3346.1,45.79622835]
[1735596764421,1.7247,3346.5,3346.1,45.49685835]
[1735596764623,2.91953049,3347.5,3346.1,45.49685835]
[1735596764624,3.2078,3347.2,3347.1,0.29928]
[1735596764818,3.2078,3347.2,3346.4,0.74835]
[1735596764819,3.2078,3347.2,3346.8,0.2993]
[1735596765014,3.2078,3347.2,3346.4,7.91953049]
[1735596765219,3.2078,3347.2,3346.9,0.29929]
[1735596765521,3.2078,3347.2,3346.9,0.2993]
[1735596765720,3.2078,3347.2,3347.0,0.29928]
[1735596765928,3.2078,3347.2,3346.4,2.91953049]
[1735596766128,3.50708,3347.2,3346.7,0.29931]
[1735596766325,0.29929,3347.1,3346.7,0.29931]
[1735596766526,3.2078,3347.2,3346.7,0.29931]
[1735596766827,3.2078,3347.2,3346.4,2.91953049]
[1735596767032,0.29935,3346.4,3346.1,40.8]
[1735596767323,0.29935,3346.4,3345.9,3.50718]
[1735596767324,0.2994,3345.8,3345.6,4.69685835]
[1735596767526,3.2078,3345.8,3345.6,4.69685835]
[1735596767729,3.2078,3345.8,3345.7,40.8]
[1735596768127,3.2078,3345.8,3345.3,7.61638884]
[1735596768128,3.2078,3345.8,3345.3,4.69685835]
[1735596768326,3.50723,3345.4,3345.3,4.69685835]
[1735596768826,3.2078,3345.4,3345.3,4.69685835]
[1735596769028,3.2078,3345.4,3345.3,4.99629835]
[1735596769229,3.2078,3345.4,3345.3,4.69685835]
[1735596769448,3.2078,3345.4,3345.2,0.29945]
[1735596769637,3.2078,3345.4,3344.6,3.2078]
[1735596769826,3.2078,3345.8,3345.3,0.29944]
[1735596770020,0.29943,3345.5,3345.1,40.8]
[1735596770532,1.5919,3345.4,3345.1,40.8]
[1735596770727,6.5263,3345.4,3344.2,3.2078]
[1735596770931,3.50728,3344.9,3344.3,0.29953]
[1735596771126,3.50728,3344.9,3344.2,3.2078]
[1735596771127,3.2078,3344.9,3344.4,40.8]
[1735596771435,3.2078,3344.9,3344.2,3.2078]
[1735596771724,0.2995,3344.6,3344.2,3.2078]
[1735596772116,1.7486,3344.5,3344.2,3.2078]
[1735596773730,2.04811,3344.5,3344.2,3.2078]
[1735596774024,3.2078,3344.4,3343.7,2.91953049]
[1735596774226,0.29954,3344.3,3343.8,0.29957]
[1735596774629,0.29954,3344.3,3343.7,2.91953049]
[1735596774630,5.24573,3344.4,3343.9,0.29956]
[1735596774827,5.24572,3344.4,3343.9,0.29956]
[1735596775022,4.9462,3344.4,3343.6,3.2078]
[1735596775326,0.29955,3344.1,3343.3,6.12733049]
[1735596775520,1.6665,3344.3,3343.3,6.12733049]
[1735596775730,0.29955,3344.1,3343.5,0.2996]
[1735596776227,1.6665,3344.3,3343.8,0.29957]
[1735596776425,3.2078,3344.4,3343.3,6.12733049]
[1735596776731,0.29954,3344.2,3343.6,0.29959]
[1735596777430,0.29954,3344.2,3343.9,40.8]
[1735596777625,3.2078,3344.4,3343.9,40.8]
[1735596777626,0.29956,3344.0,3343.9,40.8]
[1735596777832,0.29955,3344.1,3343.9,40.8]
[1735596778228,3.2078,3344.4,3343.9,40.8]
[1735596778531,3.50736,3344.0,3343.9,40.8]
[1735596779032,0.29958,3343.8,3343.3,6.42694049]
[1735596779233,1.7063,3343.9,3343.3,6.12733049]
[1735596779430,0.29957,3343.8,3343.3,3.2078]
[1735596779628,0.2996,3343.5,3343.4,40.8]
[1735596779934,0.29959,3343.7,3343.4,40.8]
[1735596780135,3.2078,3344.0,3343.4,40.8]
[1735596780436,3.3316,3344.1,3343.1,0.29964]
[1735596780437,3.50741,3343.5,3343.1,0.29964]
[1735596780623,3.2078,3343.5,3342.9,2.91953049]
[1735596780827,3.2078,3343.6,3343.5,0.2996]
[1735596781023,3.2078,3344.2,3343.3,2.91953049]
[1735596781228,3.2078,3344.2,3343.2,3.2078]
[1735596781229,6.5679,3344.7,3344.4,0.29952]
[1735596781430,4.9045,3344.7,3344.1,2.91953049]
[1735596781731,5.204,3344.7,3343.7,2.91953049]
[1735596781937,5.204,3344.7,3344.4,40.8]
[1735596782432,4.9045,3344.7,3344.4,40.8]
[1735596782622,5.204,3344.7,3344.4,40.8]
[1735596783138,4.9045,3344.7,3344.4,40.8]
[1735596783442,3.2078,3344.7,3344.6,0.2995]
[1735596784635,3.58134,3345.4,3344.8,0.29948]
[1735596785134,3.58134,3345.4,3344.6,0.2995]
[1735596785337,3.58134,3345.4,3344.8,0.29948]
[1735596785640,0.29945,3345.2,3344.6,0.2995]
[1735596785936,0.29944,3345.3,3344.7,0.29949]
[1735596786731,0.29946,3345.1,3344.5,6.42684049]
[1735596787731,3.2078,3345.0,3344.4,40.8]
[1735596788035,3.2078,3345.0,3343.9,3.2078]
[1735596788235,0.29955,3344.1,3343.7,2.91953049]
[1735596788443,3.50737,3343.9,3343.3,44.30741]
[1735596788739,0.29958,3343.8,3343.3,3.50741]
[1735596789035,3.2078,3343.9,3342.9,3.21918049]
[1735596789239,0.29961,3343.4,3342.9,2.91953049]
[1735596789537,0.29961,3343.5,3343.0,40.8]
[1735596789838,0.29958,3343.7,3343.1,0.29964]
[1735596790034,3.2078,3343.9,3343.3,2.91953049]
[1735596790232,0.29958,3343.7,3343.2,0.29963]
[1735596790536,3.2078,3343.9,3343.1,3.2078]
[1735596790734,3.2078,3343.5,3342.7,3.2078]
[1735596790936,1.61001,3343.4,3342.9,0.29965]
[1735596791135,1.61001,3343.4,3343.0,40.8]
[1735596791334,3.2078,3343.5,3343.0,40.8]
[1735596791533,1.3785,3344.0,3343.0,40.8]
[1735596791534,3.2078,3343.9,3343.3,2.91953049]
[1735596791838,3.2078,3343.9,3343.8,0.29957]
[1735596793036,3.2078,3343.9,3343.3,2.91953049]
[1735596793336,0.10759647,3376.1,3344.5,0.29951]
[1735596793337,1.3861,3345.1,3344.5,0.29951]
[1735596793533,1.3861,3345.1,3344.5,2.91953049]
[1735596793727,1.3207,3345.2,3345.1,0.29946]
[1735596794136,3.2078,3345.9,3345.1,3.2078]
[1735596794334,3.50719,3345.9,3345.3,0.29943]
[1735596794639,3.2078,3345.9,3345.1,3.2078]
[1735596794836,3.2078,3345.9,3345.4,0.29943]
[1735596795339,3.2078,3345.9,3345.3,2.91953049]
[1735596796037,3.2078,3345.9,3345.4,0.29943]
[1735596796434,3.2078,3345.9,3345.3,3.21896049]
[1735596796631,3.2078,3345.9,3345.3,2.91953049]
[1735596796842,3.2078,3345.9,3345.4,0.29943]
[1735596797030,3.2078,3345.9,3345.6,0.2994]
[1735596797236,3.2078,3345.9,3345.3,2.91953049]
[1735596797436,3.2078,3345.9,3345.5,0.29942]
[1735596797636,3.2078,3345.9,3345.4,40.8]
[1735596797637,3.2078,3345.9,3345.6,0.29941]
[1735596797841,3.2078,3345.9,3345.7,0.2994]
[1735596799048,3.2078,3345.9,3345.5,0.29941]
[1735596799345,3.2078,3345.9,3345.6,0.2994]
[1735596799740,3.2078,3345.9,3345.7,0.2994]
[1735596801143,2.8081,3346.1,3345.8,0.29939]
[1735596801643,2.8081,3346.1,3345.5,3.2078]
[1735596801846,2.8081,3346.1,3345.8,0.29938]
[1735596802147,2.8081,3346.1,3345.9,0.29938]
[1735596803647,2.8081,3346.1,3345.5,3.2078]
[1735596803843,2.8081,3346.1,3345.8,0.29939]
[1735596804448,2.8081,3346.1,3345.5,3.2078]
[1735596804648,2.8081,3346.1,3345.9,0.29938]
[1735596805446,3.10747,3346.1,3345.6,0.29941]
[1735596805650,3.10747,3346.1,3345.5,3.2078]
[1735596805651,2.8081,3346.1,3346.0,0.29937]
[1735596805846,2.8081,3346.1,3345.5,3.2078]
[1735596806049,2.8081,3346.1,3345.9,0.29938]
[1735596806552,3.2078,3346.3,3345.5,3.2078]
[1735596806753,3.50715,3346.3,3345.8,0.29938]
[1735596806951,0.29936,3346.2,3345.8,0.29939]
[1735596807247,1.67476,3346.2,3345.8,0.29939]
[1735596807454,1.67476,3346.2,3345.5,3.2078]
[1735596807455,1.3754,3346.2,3345.5,3.2078]
[1735596807655,1.3754,3346.2,3346.0,0.29937]
[1735596808749,3.2078,3346.3,3345.5,3.2078]
[1735596808951,0.29933,3346.5,3345.5,3.95635]
[1735596809254,0.29934,3346.4,3346.0,0.29937]
[1735596809556,0.29935,3346.3,3345.9,0.29938]
[1735596809747,1.3427,3346.2,3345.6,40.8]
[1735596809947,1.3427,3346.2,3346.0,0.29937]
[1735596810447,1.3427,3346.2,3346.1,0.29936]
[1735596810954,3.2078,3346.7,3346.6,0.29932]
[1735596811451,3.2078,3346.7,3346.5,0.29932]
[1735596811647,3.2078,3346.7,3346.1,2.91953049]
[1735596811849,3.2078,3346.7,3346.6,0.29932]
[1735596812060,3.2078,3346.7,3346.5,0.29932]
[1735596812247,3.2078,3346.7,3346.1,2.91953049]
[1735596812248,2.6401,3346.9,3346.3,3.2078]
[1735596812449,2.6401,3346.9,3346.8,0.2993]
[1735596812956,3.2078,3347.6,3346.8,3.2078]
[1735596813163,0.29926,3347.3,3346.9,0.29929]
[1735596813453,0.29925,3347.4,3347.0,0.29928]
[1735596813654,3.2078,3347.6,3346.9,2.91953049]
[1735596814447,3.2078,3347.6,3346.8,3.2078]
[1735596814671,0.29926,3347.3,3347.0,0.29928]
[1735596814957,0.29926,3347.3,3347.1,40.8]
[1735596815259,0.29926,3347.3,3347.1,41.09928]
[1735596815648,3.2078,3347.6,3346.9,0.29929]
[1735596815851,3.2078,3347.6,3346.8,3.2078]
[1735596816158,0.29926,3347.3,3347.1,0.29928]
[1735596816455,0.29926,3347.3,3347.0,0.29928]
[1735596817153,3.2078,3347.6,3347.0,0.29928]
[1735596817356,3.2078,3347.6,3346.8,3.2078]
[1735596817549,0.29929,3347.0,3346.8,3.5071]
[1735596817760,2.6658,3346.9,3346.8,3.5071]
[1735596817956,2.6658,3346.9,3345.8,3.2078]
[1735596818150,2.6658,3346.9,3346.2,0.29936]
[1735596818151,0.29934,3346.4,3346.2,0.29936]
[1735596818347,3.2078,3346.5,3345.8,3.2078]
[1735596818658,0.29934,3346.4,3346.1,0.29936]
[1735596818954,3.2078,3346.5,3346.4,0.29934]
[1735596819160,3.2078,3346.5,3345.8,3.2078]
[1735596819161,3.2078,3346.5,3346.3,0.29934]
[1735596819355,3.50713,3346.5,3346.2,0.29935]
[1735596819877,3.2078,3346.5,3345.8,3.2078]
[1735596820253,3.2078,3346.5,3345.9,0.29938]
[1735596820254,0.29936,3346.2,3345.9,0.29938]
[1735596820456,3.2078,3346.5,3345.8,3.2078]
[1735596820658,0.29937,3346.1,3345.8,3.2078]
[1735596820865,1.3411,3346.0,3345.4,42.315]
[1735596821160,0.29939,3345.8,3345.4,40.8]
[1735596821753,0.29939,3345.8,3345.4,41.09943]
[1735596822160,2.787,3345.9,3345.4,40.8]
[1735596823660,0.29941,3345.7,3345.4,40.8]
[1735596824061,0.29942,3345.6,3345.4,40.8]
[1735596824467,3.50722,3345.6,3345.4,40.8]
[1735596824960,3.50722,3345.6,3344.9,6.12733049]
[1735596825158,3.2078,3345.6,3344.9,6.12733049]
[1735596825352,3.2078,3345.6,3344.1,4.69685835]
[1735596825353,0.29951,3344.6,3344.1,8.20419835]
[1735596825552,3.2078,3345.1,3344.2,40.8]
[1735596825553,0.29952,3344.4,3344.2,40.8]
[1735596826361,0.29952,3344.4,3343.7,12.3132472]
[1735596826362,0.29953,3344.3,3343.8,0.29957]
[1735596826859,1.3511,3344.2,3343.9,40.8]
[1735596828057,2.7048,3344.5,3343.9,40.8]
[1735596828257,0.29953,3344.3,3343.9,40.8]
[1735596828560,0.29953,3344.4,3343.9,40.8]
[1735596828860,2.7048,3344.5,3343.6,3.2078]
[1735596828861,3.2078,3344.1,3343.6,3.2078]
[1735596829062,1.3588,3344.0,3343.9,0.29956]
[1735596829253,1.3588,3344.0,3343.9,40.8]
[1735596829456,1.3588,3344.0,3343.6,3.2078]
[1735596829457,1.65835,3344.0,3343.6,3.2078]
[1735596829659,1.3588,3344.0,3343.6,3.2078]
[1735596830065,1.3588,3344.0,3343.8,0.29957]
[1735596830366,1.3588,3344.0,3343.7,40.8]
[1735596830661,1.3588,3344.0,3343.8,0.29957]
[1735596831161,1.3588,3344.0,3343.7,40.8]
[1735596831361,1.3588,3344.0,3343.7,41.09958]
[1735596832063,1.3588,3344.0,3343.9,0.29956]
[1735596833363,2.7048,3344.5,3343.7,2.91953049]
[1735596833557,2.7048,3344.5,3344.1,0.29954]
[1735596833964,2.7048,3344.5,3344.2,40.8]
[1735596834266,3.00431,3344.5,3344.2,40.8]
[1735596834468,3.00431,3344.5,3344.2,41.09953]
[1735596834469,2.7048,3344.5,3344.2,41.09953]
[1735596834857,2.7048,3344.5,3344.2,40.8]
[1735596835060,2.7048,3344.5,3344.4,0.29952]
[1735596835061,1.321,3344.5,3344.4,0.29952]
[1735596835664,4.5708,3345.1,3344.8,0.29948]
[1735596835870,4.5708,3345.1,3344.7,0.29949]
[1735596836261,4.87026,3345.1,3344.7,0.29949]
[1735596836865,4.87026,3345.1,3344.8,0.29948]
[1735596837066,4.5708,3345.1,3344.8,0.29948]
[1735596837377,4.5708,3345.1,3345.0,0.29946]
[1735596837564,1.3021,3345.4,3345.2,0.29944]
[1735596838768,1.3021,3345.4,3344.5,2.91953049]
[1735596838965,1.3021,3345.4,3345.3,0.29944]
[1735596839164,1.3021,3345.4,3345.2,0.29944]
[1735596839772,0.29942,3345.5,3345.2,0.29944]
[1735596840070,3.50722,3345.6,3345.2,0.29944]
[1735596840265,3.50722,3345.6,3345.2,41.09944]
[1735596840466,3.2078,3345.6,3345.2,40.8]
[1735596840667,3.2078,3345.6,3345.2,0.29944]
[1735596840972,3.2078,3345.6,3345.5,0.29942]
[1735596841174,3.2078,3345.7,3345.1,40.8]
[1735596841870,3.2078,3345.7,3345.6,0.29941]
[1735596842262,3.2078,3345.7,3345.5,0.29941]
[1735596842663,3.2078,3345.7,3345.6,0.29941]
[1735596842873,1.2884,3346.0,3345.9,0.29938]
[1735596843075,1.2884,3346.0,3345.8,0.29939]
[1735596843268,1.2884,3346.0,3345.9,0.29938]
[1735596843865,1.2884,3346.0,3345.6,0.29941]
[1735596844070,1.2884,3346.0,3345.2,3.2078]
[1735596844269,1.2884,3346.0,3345.7,0.2994]
[1735596844774,3.2078,3345.8,3345.3,1.04804]
[1735596844966,1.2884,3346.0,3345.3,2.91953049]
[1735596845169,4.4962,3346.0,3345.9,0.29938]
[1735596845373,1.2884,3346.0,3345.9,0.29938]
[1735596846777,1.3202,3346.3,3346.2,0.29936]
[1735596846965,4.4836,3347.0,3346.9,0.29929]
[1735596847276,5.7641,3347.0,3346.9,0.29929]
[1735596847770,5.7641,3347.0,3346.1,2.91953049]
[1735596847976,0.2993,3346.9,3346.6,0.29932]
[1735596848281,0.2993,3346.9,3346.0,3.95622]
[1735596848476,0.2993,3346.9,3346.6,0.29931]
[1735596848776,0.29929,3346.9,3346.6,0.29932]
[1735596849476,5.7641,3347.0,3346.0,3.2078]
[1735596849677,0.2993,3346.9,3346.1,0.74842]
[1735596849879,0.2993,3346.9,3346.6,0.29931]
[1735596850073,5.7641,3347.0,3346.7,0.29931]
[1735596850273,5.7641,3347.0,3346.1,3.66795049]
[1735596850472,0.29931,3346.8,3346.6,0.29932]
[1735596850774,0.2993,3346.9,3346.6,41.09932]
[1735596851173,5.7641,3347.0,3346.1,3.66795049]
[1735596851371,0.29929,3346.9,3346.7,0.29931]
[1735596851573,6.06339,3347.0,3346.7,0.29931]
[1735596851973,0.29929,3346.9,3346.7,0.29931]
[1735596852178,5.7641,3347.0,3346.7,0.29931]
[1735596852678,6.06339,3347.0,3346.7,0.29931]
[1735596852879,5.7641,3347.0,3346.8,0.2993]
[1735596853281,6.06339,3347.0,3346.8,0.2993]
[1735596853678,6.06339,3347.0,3346.2,40.8]
[1735596853679,5.7641,3347.0,3346.9,0.29929]
[1735596853874,5.7641,3347.0,3346.2,40.8]
[1735596854085,3.2078,3346.6,3345.6,3.2078]
[1735596854269,3.50716,3346.2,3345.7,0.2994]
[1735596854475,3.8787,3346.1,3345.9,0.29938]
[1735596855071,3.2078,3346.5,3345.7,3.95631]
[1735596855399,1.59991,3346.7,3346.3,0.29934]
[1735596855575,1.59991,3346.7,3345.8,0.74849]
[1735596855783,1.59991,3346.7,3346.3,0.29934]
[1735596856083,4.80771,3346.7,3346.3,0.29934]
[1735596856574,4.5084,3346.7,3345.7,3.95631]
[1735596856780,4.5084,3346.7,3346.5,0.29932]
[1735596857376,4.5084,3346.7,3346.6,0.29932]
[1735596857781,4.5084,3346.7,3346.5,0.29933]
[1735596858080,4.5084,3346.7,3346.6,0.29932]
[1735596858281,3.2078,3346.7,3346.1,3.2078]
[1735596858582,4.5545,3346.7,3346.1,3.2078]
[1735596858792,4.5545,3346.7,3346.6,0.29932]
[1735596859786,4.5545,3346.7,3346.5,0.29932]
[1735596860585,4.5545,3346.7,3345.7,3.2078]
[1735596860784,0.29933,3346.5,3346.1,0.29936]
[1735596861091,1.60392,3346.6,3346.2,0.29935]
[1735596862283,1.3046,3346.6,3346.5,0.29933]
[1735596862685,1.60392,3346.6,3346.2,0.29935]
[1735596863383,1.3046,3346.6,3345.7,3.2078]
[1735596863689,3.2078,3346.2,3345.7,3.2078]
[1735596863881,0.29937,3346.1,3345.7,3.5072]
[1735596864088,1.2795,3346.0,3345.7,3.5072]
[1735596864485,1.2795,3346.0,3345.7,3.2078]
[1735596864686,1.2795,3346.0,3345.8,0.29939]
[1735596865190,1.2795,3346.0,3345.7,3.2078]
[1735596865395,1.57888,3346.0,3345.7,3.5072]
[1735596865988,1.2795,3346.0,3345.9,0.29938]
[1735596866290,1.3046,3346.6,3346.2,0.29935]
[1735596866291,1.60393,3346.6,3346.2,0.29935]
[1735596866483,1.60393,3346.6,3346.1,0.29936]
[1735596866484,1.61363,3346.5,3346.1,0.29936]
[1735596866681,1.3143,3346.5,3346.3,40.8]
[1735596867385,1.3143,3346.5,3346.4,0.29934]
[1735596867586,1.3143,3346.5,3346.3,41.09934]
[1735596867782,1.3143,3346.5,3345.7,3.2078]
[1735596868292,3.2078,3346.4,3345.8,40.8]
[1735596868494,3.2078,3346.4,3346.2,0.29935]
[1735596868691,3.2078,3346.4,3345.8,40.8]
[1735596868892,3.50714,3346.4,3346.0,0.29937]
[1735596869093,3.50714,3346.4,3346.1,0.29937]
[1735596869792,3.2078,3346.4,3346.1,0.29937]
[1735596870194,3.50714,3346.4,3346.0,0.29937]
[1735596870388,3.50714,3346.4,3346.1,0.29936]
[1735596870990,3.2078,3346.4,3345.8,40.8]
[1735596871191,0.29936,3346.2,3345.9,0.29938]
[1735596871487,0.29938,3346.0,3345.8,40.8]
[1735596871692,1.281,3345.9,3345.2,3.95641]
[1735596871892,1.281,3345.9,3345.8,0.29939]
[1735596872788,1.281,3345.9,3345.5,40.8]
[1735596872987,0.29941,3345.6,3345.3,0.29944]
[1735596873194,1.3691,3345.5,3345.3,0.29944]
[1735596873496,1.3691,3345.5,3345.2,44.0078]
[1735596873900,1.3691,3345.5,3345.4,0.29943]
[1735596875205,1.281,3345.9,3345.8,0.29939]
[1735596877602,1.281,3345.9,3345.8,41.09939]
[1735596878601,1.281,3345.9,3345.5,0.29942]
[1735596878602,0.2994,3345.8,3345.5,0.29942]
[1735596878799,1.281,3345.9,3345.6,0.29941]
[1735596879009,1.281,3345.9,3345.7,0.2994]
[1735596879597,1.281,3345.9,3345.3,2.268532]
[1735596879793,1.281,3345.9,3345.6,0.2994]
[1735596880599,1.58039,3345.9,3345.6,0.2994]
[1735596880800,0.29939,3345.8,3345.5,0.29942]
[1735596881103,1.58039,3345.9,3345.5,0.29942]
[1735596881300,1.281,3345.9,3345.2,3.2078]
[1735596881501,3.2078,3345.5,3345.1,4.69685835]
[1735596881701,0.29945,3345.2,3345.1,4.69685835]
[1735596882705,2.5972,3345.4,3344.9,0.29947]
[1735596882905,1.2317,3345.1,3344.9,0.29947]
[1735596883608,1.2317,3345.1,3344.7,40.8]
[1735596884115,1.2317,3345.1,3344.8,0.29947]
[1735596884116,1.53116,3345.1,3344.8,0.29947]
[1735596884312,1.2317,3345.1,3344.8,0.29947]
[1735596885002,1.2317,3345.1,3344.7,40.8]
[1735596885304,1.2317,3345.1,3344.8,0.29948]
[1735596886005,1.53116,3345.1,3344.7,41.09949]
[1735596886302,1.2317,3345.1,3344.9,0.29947]
[1735596887008,1.2317,3345.1,3345.0,0.29946]
[1735596888405,1.2317,3345.1,3344.7,44.75653]
[1735596888406,1.2317,3345.1,3344.7,44.0078]
[1735596888712,1.53116,3345.1,3344.7,3.50729]
[1735596888914,0.29948,3344.9,3344.7,3.2078]
[1735596889104,0.29948,3344.9,3344.5,40.8]
[1735596889105,3.2078,3344.9,3344.5,40.8]
[1735596889303,0.29952,3344.5,3344.3,4.69685835]
[1735596889504,3.2078,3344.9,3344.6,0.29949]
[1735596889814,3.2078,3344.9,3344.8,0.29948]
[1735596890214,1.53116,3345.1,3345.0,0.29946]
[1735596890215,1.2317,3345.1,3345.0,0.29946]
[1735596891108,4.4395,3345.1,3345.0,0.29946]
[1735596891417,4.73896,3345.1,3344.9,0.29947]
[1735596892011,4.4395,3345.1,3344.2,3.2078]
[1735596892316,0.29951,3344.6,3344.4,0.29951]
[1735596892715,5.18815,3345.1,3344.3,0.29952]
[1735596892716,1.58291,3344.5,3344.3,0.29952]
[1735596893013,1.58291,3344.5,3344.2,3.2078]
[1735596893014,1.2834,3344.5,3344.4,0.29952]
[1735596894609,0.29949,3344.8,3344.4,0.29952]
[1735596895011,1.2834,3345.0,3344.2,3.2078]
[1735596895410,1.2834,3345.0,3344.6,0.29949]
[1735596895816,1.58287,3345.0,3344.2,3.2078]
[1735596896018,1.58287,3345.0,3344.7,0.29949]
[1735596896316,1.2834,3345.0,3344.7,0.29949]
[1735596896519,1.58287,3345.0,3344.7,0.29949]
[1735596896915,1.58287,3345.0,3344.8,0.29948]
[1735596897313,4.73896,3345.1,3344.8,0.29948]
[1735596897515,0.29948,3344.9,3344.7,0.29949]
[1735596898130,0.29948,3344.9,3344.8,0.29948]
[1735596898313,0.29948,3344.9,3344.7,0.29949]
[1735596898619,0.29948,3344.9,3344.8,0.29948]
[1735596898915,4.4395,3345.1,3344.2,3.2078]
[1735596899117,3.2078,3344.7,3344.2,3.2078]
[1735596899317,2.4541,3344.6,3344.5,0.29951]
[1735596899618,2.7536,3344.6,3344.4,0.29951]
[1735596900515,2.4541,3344.6,3344.5,0.29951]
[1735596900720,3.2078,3344.7,3344.6,0.2995]
[1735596901713,3.2078,3344.7,3344.2,0.74884]
[1735596901714,2.4533,3345.1,3344.4,3.67146013]
[1735596901921,1.2317,3345.1,3344.6,3.2078]
[1735596902418,1.2317,3345.1,3345.0,0.29946]
[1735596903117,4.4292,3345.5,3345.4,0.29943]
[1735596903315,1.22,3345.8,3345.3,2.26954253]
[1735596903525,1.22,3345.8,3345.4,40.8]
[1735596903824,1.22,3345.8,3345.6,0.2994]
[1735596904022,1.22,3345.8,3345.4,40.8]
[1735596904220,1.22,3345.8,3345.7,0.2994]
[1735596904620,1.3197,3346.1,3345.4,40.8]
[1735596904621,1.3197,3346.1,3345.6,2.26954253]
[1735596904824,1.3197,3346.1,3346.0,0.29937]
[1735596905024,4.4851,3346.4,3346.0,0.29937]
[1735596905327,0.29942,3345.6,3345.4,40.8]
[1735596905529,0.29942,3345.6,3345.2,0.29944]
[1735596905530,3.7913,3345.5,3345.1,4.99630835]
[1735596905924,3.7913,3345.5,3345.1,45.79630835]
[1735596906424,3.7913,3345.5,3345.2,0.29944]
[1735596906626,3.7913,3345.5,3345.1,4.69685835]
[1735596906627,3.7913,3345.5,3345.1,6.96640088]
[1735596906828,3.7913,3345.5,3345.2,0.29944]
[1735596907325,3.7913,3345.5,3345.4,0.29943]
[1735596907623,2.23929518,3346.3,3345.4,2.26954253]
[1735596907928,2.23929518,3346.3,3346.2,0.29936]
[1735596908223,2.23929518,3346.3,3346.2,41.09936]
[1735596909419,2.23929518,3346.3,3345.9,2.26954253]
[1735596909420,2.23929518,3346.3,3345.7,3.2078]
[1735596909928,3.50715,3346.4,3346.1,0.29936]
[1735596909929,3.2078,3346.4,3346.1,0.29936]
[1735596910321,3.2078,3346.4,3345.7,44.0078]
[1735596910628,3.50714,3346.4,3346.0,0.29937]
[1735596910928,3.50714,3346.4,3345.4,0.29942]
[1735596910929,0.2994,3345.7,3345.4,0.29942]
[1735596911120,3.8318,3345.6,3345.5,0.29942]
[1735596911321,1.3319,3345.6,3345.5,0.29942]
[1735596912020,1.3319,3345.6,3345.4,0.29942]
[1735596912430,1.3319,3345.6,3345.4,3.2078]
[1735596912926,1.3319,3345.6,3345.5,0.29942]
[1735596914222,3.2078,3346.2,3346.0,0.29937]
[1735596914523,1.2967,3346.1,3345.5,2.92064264]
[1735596914726,1.2967,3346.1,3346.0,0.29937]
[1735596915527,1.2967,3346.1,3345.5,2.92064264]
[1735596915528,1.2967,3346.1,3345.9,0.29938]
[1735596916326,1.2967,3346.1,3346.0,0.29937]
[1735596918223,3.2078,3346.2,3345.6,41.54851]
[1735596918551,3.2078,3346.2,3346.1,0.29937]
[1735596919328,2.4999,3346.3,3345.8,0.74849]
[1735596919531,1.3075,3346.5,3345.9,6.12844264]
[1735596919830,2.23929518,3346.9,3346.8,0.2993]
[1735596920019,2.23929518,3346.9,3346.8,3.21994264]
[1735596920324,2.23929518,3347.1,3347.0,0.29929]
[1735596920521,2.23929518,3347.1,3347.0,41.09929]
[1735596921125,2.23929518,3347.1,3347.0,46.09929]
[1735596921635,2.23929518,3347.1,3347.0,41.09929]
[1735596922228,1.2283,3347.5,3347.4,0.29925]
[1735596922931,3.2078,3348.1,3347.8,0.29921]
[1735596923733,3.2078,3348.1,3347.7,0.29922]
[1735596923931,6.2348,3347.9,3346.7,7.90465835]
[1735596924130,0.2993,3346.8,3346.7,4.69685835]
[1735596924326,3.2078,3346.8,3346.7,4.69685835]
[1735596924524,2.85138,3347.1,3346.7,4.69685835]
[1735596924727,2.5521,3347.1,3346.7,4.69685835]
[1735596924933,0.29929,3347.0,3346.5,0.29932]
[1735596925331,2.85138,3347.1,3346.1,3.2078]
[1735596925628,0.29929,3347.0,3346.5,0.29933]